{"text_format":"3","workbook":"xlsx","n_sheets":11,"sheets":["NISSAN HARDBODY BAKKIES","VW CHICO 1400 CITI GOLFS","OPER CORSA'S 2006","TOYOTA LANDCRUISER 70","NISSAN CM SERIES 1997","ISUZU N SER","HINO SUPER F 2009","ISUZU FSR700 1999","ISUZU FSR700","TRUCK ISUZU FVZ SEWERAGE TRUCK ","NISSAN FIRE TRUCK 1998"],"read":"whole","date_system":"1900"}

{"sheet":"NISSAN HARDBODY BAKKIES","index":0,"n_rows":65,"n_cols":6,"rows_kept":65,"merged":[[1,5,1,6],[3,0,3,5]]}
["Fill in the yellow fields only"]
["FORMAL QUOTE NO: FQ 45/2025",{"$nulls":3},"SUPPLIER \nNAME"]
[]
["SUPPLY AND DELIVERY OF MECHANICAL SPARE PARTS (ONCE-OFF) FOR KANNALAND MUNICIPALITY"]
[]
["ITEM NO.","DESCRIPTION","UNIT","QUANTITY","RATE","AMOUNT (EXCL. VAT)"]
[1,"NISSAN HARDBODY BAKKIE 2007 -AIR FILTER","EACH",6,0,{"$f":"D7*E7","v":0}]
[2,"NISSAN HARDBODY BAKKIE 2007 -OIL FILTER","EACH",6,0,{"$f":"D8*E8","v":0}]
[3,"NISSAN HARDBODY BAKKIE 2007- DIESEL FILTER","EACH",6,0,0]
[4,"NISSAN HARDBODY BAKKIE 2007- DIESEL WATER SEPERATOR","EACH",6,0,0]
[5,"NISSAN HARDBODY BAKKIE 2007-TIE ROD INNER PAIR (LH)","EACH",7,0,0]
[6,"NISSAN HARDBODY BAKKIE 2007-TIE ROD INNER PAIR (RH)","EACH",7,0,0]
[7,"NISSAN HARDBODY BAKKIE 2007-TIE ROD OUTER PAIR (LH)","EACH",7,0,0]
[8,"NISSAN HARDBODY BAKKIE 2007-TIE ROD OUTER PAIR (RH)","EACH",7,0,0]
[9,"NISSAN HARDBODY BAKKIE 2007-CENTRE ROD","EACH",7,0,0]
[10,"NISSAN HARDBODY BAKKIE 2007-IDLER ARM","EACH",5,0,0]
[11,"NISSAN HARDBODY BAKKIE 2007-STABILIZER BUSHES","PER SET",10,0,0]
[12,"NISSAN HARDBODY BAKKIE 2007-FRONT LINK RODS","EACH",18,0,0]
[13,"NISSAN HARDBODY BAKKIE 2007-WASHERS","PER SET",10,0,0]
[14,"NISSAN HARDBODY BAKKIE 2007-TEFLON BUSHES","PER SET",10,0,0]
[15,"NISSAN HARDBODY BAKKIE 2007-STABILIZER HANGER BUSHES","EACH",18,0,0]
[16,"FRONT WHEEL BEARING","PER SET",7,0,0]
[17,"REAR WHEEL BEARINGS","PER SET",7,0,0]
[18,"UPPER CONTROL ARM BUSHES (LH & RH)","PER SET",7,0,0]
[19,"FRONT SHOCKS","PER SET",5,0,0]
[20,"REAR SHOCKS","PER SET",5,0,0]
[21,"STARTER 12V","EACH",5,0,0]
[22,"ALTERNATOR","EACH",3,0,0]
[23,"UPPER BALL JOINTS","PER SET",7,0,0]
[24,"LOWER BALL JOINTS","PER SET",7,0,0]
[25,"FRONT DISCS","PER SET",7,0,0]
[26,"BRAKE PADS","PER SET",7,0,0]
[27,"BRAKE SHOES","PER SET",7,0,0]
[28,"BRAKE SPRINGS KIT","PER SET",7,0,0]
[29,"BRAKE DRUMS","PER SET",7,0,0]
[30,"WHEEL CYLINDERS LH & RH","PER SET",16,0,0]
[31,"UNIVERSAL JOINTS","PER SET",6,0,0]
[32,"CENTRE BEARING","EACH",7,0,0]
[33,"WIPER BLADES (DRIVER SIDE)","EACH",8,0,0]
[34,"WIPER BLADES (PASSENGER SIDE)","EACH",8,0,0]
[35,"HAND BRAKE CABLES (DRIVERS SIDE)","EACH",8,0,0]
[36,"HAND BRAKE CABLES (PASSENGER SIDE)","EACH",8,0,0]
[37,"HAND LEVER MECHANISM","EACH",4,0,0]
[38,"SHACKLE HANGER BRACKETS","PER SET",8,0,0]
[39,"FRONT LEAF BUSHES (ALSO REAR AXLE)","PER SET",8,0,0]
[40,"FRONT LEAF SPRING (CENTRE PIN)","PER SET",7,0,0]
[41,"HALF PLASTIC BUMPER","EACH",7,0,0]
[42,"REAR TAIL LIGHTS (LH &RH)","PER SET",7,0,0]
[43,"FRONT HEADLIGHTS (LH & RH)","PER SET",7,0,0]
[44,"CORNER LIGHTS (LH & RH)","PER SET",7,0,0]
[45,"FENDER SIGNAL LIGHTS (LH & RH)","PER SET",7,0,0]
[46,"RADIATOR","EACH",2,0,0]
[null,"SUMMARY OF PRICING SCHEDULE"]
[]
[null,"SUB-TOTAL",{"$nulls":3},{"$f":"SUM(F7:F52)","v":{"v":0,"d":"R0.00"}}]
[]
[null,"15% VAT",{"$nulls":3},{"$f":"ROUND(F55*0.15,2)","v":{"v":0,"d":"R0.00"}}]
[]
[null,"TENDER SUM CARRIED FORWARD TO FORM OF OFFER",{"$nulls":3},{"$f":"ROUND(SUM(F55:F57),2)","v":{"v":0,"d":"R0.00"}}]
[]
[]
[]
[null,"SIGNATURE OF SUPPLIER:","….............................................."]
[]
[null,"DATE:","…............................................"]

{"sheet":"VW CHICO 1400 CITI GOLFS","index":1,"n_rows":51,"n_cols":6,"rows_kept":51,"merged":[[1,5,1,6],[3,0,3,5]]}
["Fill in the yellow fields only"]
["FORMAL QUOTE NO: FQ 45/2025",{"$nulls":3},"SUPPLIER \nNAME"]
[]
["SUPPLY AND DELIVERY OF MECHANICAL SPARE PARTS (ONCE-OFF) FOR KANNALAND MUNICIPALITY"]
[]
["ITEM NO.","DESCRIPTION","UNIT","QUANTITY","RATE","AMOUNT (EXCL. VAT)"]
[1,"NISSAN HARDBODY BAKKIE 2007 -AIR FILTER","EACH",6,0,{"$f":"D7*E7","v":0}]
[2,"OIL FILTER","EACH",4,0,{"$f":"D8*E8","v":0}]
[3,"FUEL FILTER","EACH",4,0,0]
[4,"AIR FILTER","EACH",4,0,0]
[5,"SPARK PLUGS","EACH",12,0,0]
[6,"DISC PADS","PER SET",4,0,0]
[7,"DISCS","EACH",4,0,0]
[8,"FRONT WHEEL BEARING","EACH",6,0,0]
[9,"FRONT SHOCKS","EACH",4,0,0]
[10,"FRONT SHOCKS MOUNTING BRACKETS","EACH",4,0,0]
[11,"REAR SHOCKS","PER SET",4,0,0]
[12,"REAR SHOCKS MOUNTING BRACKETS","EACH",4,0,0]
[13,"REAR WHEEL BEARINGS","EACH",5,0,0]
[14,"REAR WHEEL CYLINDERS","EACH",6,0,0]
[15,"REAR DRUMS","EACH",4,0,0]
[16,"CV JOINTS INNER","EACH",4,0,0]
[17,"OUTER CV JOINTS","EACH",4,0,0]
[18,"WIPER BLADES LH & RH","EACH",4,0,0]
[19,"ALTERNATOR (COMPLETE UNIT)","EACH",1,0,0]
[20,"LOWER CONTROL ARM BUSHES LH & RH","PER SET",8,0,0]
[21,"LOWER BALL JOINTS","EACH",5,0,0]
[22,"FAN BELTS: STEERING","EACH",3,0,0]
[23,"ENGINE MOUNTING","EACH",2,0,0]
[24,"GEARBOX MOUNTING","EACH",2,0,0]
[25,"HEADLIGHTS","EACH",4,0,0]
[26,"SPOTLIGHTS","EACH",4,0,0]
[27,"TALE LIGHTS LH & RH)","EACH",4,0,0]
[28,"HEAT GUAGE PLASTIC UNIT","EACH",2,0,0]
[29,"OUTER DOOR HANDLES COMPLETE (FRONT WITH LOCKS AND KEYS)","EACH",2,0,0]
[30,"OUTER DOOR HANDLES COMPLETE (REAR WITHOUT LOCKS)","EACH",2,0,0]
[31,"FUEL CAP AND KEY","EACH",2,0,0]
[32,"IGNITION KEY AND BARREL WITH IGNITION SWITCH","EACH",7,0,0]
[null,"SUMMARY OF PRICING SCHEDULE"]
[]
[null,"SUB-TOTAL",{"$nulls":3},{"$f":"SUM(F7:F38)","v":{"v":0,"d":"R0.00"}}]
[]
[null,"15% VAT",{"$nulls":3},{"$f":"ROUND(F41*0.15,2)","v":{"v":0,"d":"R0.00"}}]
[]
[null,"TENDER SUM CARRIED FORWARD TO FORM OF OFFER",{"$nulls":3},{"$f":"ROUND(SUM(F41:F43),2)","v":{"v":0,"d":"R0.00"}}]
[]
[]
[]
[null,"SIGNATURE OF SUPPLIER:","….............................................."]
[]
[null,"DATE:","…............................................"]

{"sheet":"OPER CORSA'S 2006","index":2,"n_rows":46,"n_cols":6,"rows_kept":46,"merged":[[3,0,3,5]]}
["Fill in the yellow fields only"]
["FORMAL QUOTE NO: FQ 45/2025",{"$nulls":3},"SUPPLIER \nNAME"]
[]
["SUPPLY AND DELIVERY OF MECHANICAL SPARE PARTS (ONCE-OFF) FOR KANNALAND MUNICIPALITY"]
[]
["ITEM NO.","DESCRIPTION","UNIT","QUANTITY","RATE","AMOUNT (EXCL. VAT)"]
[1,"AIR FILTER","EACH",2,0,{"$f":"D7*E7","v":0}]
[2,"OIL FILTER","EACH",2,0,{"$f":"D8*E8","v":0}]
[3,"FUEL FILTER","EACH",2,0,0]
[4,"SPARK PLUGS","EACH",12,0,0]
[6,"DISC PADS","PER SET",3,0,0]
[7,"DISCS","EACH",4,0,0]
[8,"FRONT WHEEL BEARING","EACH",6,0,0]
[9,"FRONT SHOCKS","EACH",4,0,0]
[10,"FRONT SHOCKS MOUNTING BRACKETS","EACH",4,0,0]
[11,"REAR SHOCKS","PER SET",4,0,0]
[12,"REAR SHOCKS MOUNTING BRACKETS","EACH",4,0,0]
[13,"REAR WHEEL BEARINGS","EACH",4,0,0]
[14,"REAR WHEEL CYLINDERS","EACH",4,0,0]
[15,"REAR DRUMS","EACH",2,0,0]
[16,"CV JOINTS INNER","EACH",4,0,0]
[17,"OUTER CV JOINTS","EACH",4,0,0]
[18,"WIPER BLADES LH & RH","EACH",4,0,0]
[19,"COMPLETE CLUTCH KIT","EACH",1,0,0]
[20,"STEERING TIE-ROD ENDS LH & RH","PER SET",4,0,0]
[21,"LOWER BALL JOINTS","EACH",6,0,0]
[22,"STABILIZER LINKAGE","EACH",6,0,0]
[23,"SLAVE CYLINDER CLUTCH","EACH",2,0,0]
[24,"CLUTCH MASTER CYLINDER","EACH",2,0,0]
[25,"BOOT LOCK","EACH",2,0,0]
[26,"RADIATOR","EACH",1,0,0]
[27,"FULL GASKET SET","EACH",1,0,0]
[28,"COMPLETE TIMING BELT KIT","EACH",2,0,0]
[null,"SUMMARY OF PRICING SCHEDULE"]
[]
[null,"SUB-TOTAL",{"$nulls":3},{"$f":"SUM(F2:F33)","v":{"v":0,"d":"R0.00"}}]
[]
[null,"15% VAT",{"$nulls":3},{"$f":"ROUND(F36*0.15,2)","v":{"v":0,"d":"R0.00"}}]
[]
[null,"TENDER SUM CARRIED FORWARD TO FORM OF OFFER",{"$nulls":3},{"$f":"ROUND(SUM(F36:F38),2)","v":{"v":0,"d":"R0.00"}}]
[]
[]
[]
[null,"SIGNATURE OF SUPPLIER:","….............................................."]
[]
[null,"DATE:","…............................................"]

{"sheet":"TOYOTA LANDCRUISER 70","index":3,"n_rows":46,"n_cols":6,"rows_kept":46,"merged":[[3,0,3,5]]}
["Fill in the yellow fields only"]
["FORMAL QUOTE NO: FQ 45/2025",{"$nulls":3},"SUPPLIER \nNAME"]
[]
["SUPPLY AND DELIVERY OF MECHANICAL SPARE PARTS (ONCE-OFF) FOR KANNALAND MUNICIPALITY"]
[]
["ITEM NO.","DESCRIPTION","UNIT","QUANTITY","RATE","AMOUNT (EXCL. VAT)"]
[1,"AIR FILTER","EACH",2,0,{"$f":"D7*E7","v":0}]
[2,"DIESEL FILTER","EACH",2,0,{"$f":"D8*E8","v":0}]
[3,"BRAKE PADS","EACH",1,0,0]
[4,"OIL FILTER","EACH",2,0,0]
[6,"20 LITRE WATER BASE DEGREASER","EACH",3,0,0]
[7,"INSULATION TAPE","EACH",10,0,0]
[8,"HEAT WIRE PROTECTION SHRINKING SLEEVES","PER BOX",1,0,0]
[9,"MULTI-PURPOSE LUBRICANT 150G","EACH",6,0,0]
[10,"SINGLE CONTACT BULBS 12V","PER BOX",1,0,0]
[11,"SINGLE CONTACT BULBS 24V","PER BOX",1,0,0]
[12,"REAR 24V COMPLETE LIGHTS (ROUND) BRAKE LIGHT AND SIGNAL LIGHT","EACH",12,0,0]
[13,"W5W LIGHT BULB 12V 5W FENDER","EACH",20,0,0]
[14,"12V COMPLETE NUMBER PLATES","EACH",10,0,0]
[15,"24V COMPLETE NUMBER PLATES","EACH",5,0,0]
[16,"12V HOOTERS","EACH",15,0,0]
[17,"24V HOOTERS","EACH",8,0,0]
[18,"12V HEADLIGHT BULBS (3 POINT)","EACH",6,0,0]
[19,"24V HEADLIGHTS BULBS","EACH",10,0,0]
[20,"12V DOUBLE CONTACT BULBS","EACH",10,0,0]
[21,"24V DOUBLE CONTACT BULBS","EACH",10,0,0]
[22,"SMALL PLANT SPARE PARTS, GENERATOR (WATER PUMP,WEAT EATER)",null,null,0,0]
[23,"SPARK PLUGS","PER BOX",2,0,0]
[24,"AIR FILTER","EACH",6,0,0]
[25,"OIL FILTER","EACH",3,0,0]
[26,"PULL ROPE","PER METRE",10,0,0]
[27,"FUEL FILTER","EACH",8,0,0]
[28,"CUT-OFF SWITCH","EACH",4,0,0]
[null,"SUMMARY OF PRICING SCHEDULE"]
[]
[null,"SUB-TOTAL",{"$nulls":3},{"$f":"SUM(F7:F26)","v":{"v":0,"d":"R0.00"}}]
[]
[null,"15% VAT",{"$nulls":3},{"$f":"ROUND(F36*0.15,2)","v":{"v":0,"d":"R0.00"}}]
[]
[null,"TENDER SUM CARRIED FORWARD TO FORM OF OFFER",{"$nulls":3},{"$f":"ROUND(SUM(F36:F38),2)","v":{"v":0,"d":"R0.00"}}]
[]
[]
[]
[null,"SIGNATURE OF SUPPLIER:","….............................................."]
[]
[null,"DATE:","…............................................"]

{"sheet":"NISSAN CM SERIES 1997","index":4,"n_rows":27,"n_cols":6,"rows_kept":27,"merged":[[3,0,3,5]]}
["Fill in the yellow fields only"]
["FORMAL QUOTE NO: FQ 45/2025",{"$nulls":3},"SUPPLIER \nNAME"]
[]
["SUPPLY AND DELIVERY OF MECHANICAL SPARE PARTS (ONCE-OFF) FOR KANNALAND MUNICIPALITY"]
[]
["ITEM NO.","DESCRIPTION","UNIT","QUANTITY","RATE","AMOUNT (EXCL. VAT)"]
[1,"AIR FILTER ADG 619","EACH",1,0,{"$f":"D7*E7","v":0}]
[2,"AIR FILTER CA 25235Y","EACH",1,0,{"$f":"D8*E8","v":0}]
[3,"DIESEL FILTER","EACH",2,0,0]
[4,"OIL FILTER","EACH",1,0,0]
[6,"FRONT AND REAR SHOCKS","EACH",4,0,0]
[7,"REAL LIGHTS LED","EACH",2,0,0]
[8,"WIPER BLADES LH+RH","PER BOX",2,0,0]
[9,"FRONT AND REAR SHACKLE PIN AND BRUSHES","EACH",8,0,0]
[null,"SUMMARY OF PRICING SCHEDULE"]
[]
[null,"SUB-TOTAL",{"$nulls":3},{"$f":"SUM(F7:F14)","v":{"v":0,"d":"R0.00"}}]
[]
[null,"15% VAT",{"$nulls":3},{"$f":"ROUND(F17*0.15,2)","v":{"v":0,"d":"R0.00"}}]
[]
[null,"TENDER SUM CARRIED FORWARD TO FORM OF OFFER",{"$nulls":3},{"$f":"ROUND(SUM(F17:F19),2)","v":{"v":0,"d":"R0.00"}}]
[]
[]
[]
[null,"SIGNATURE OF SUPPLIER:","….............................................."]
[]
[null,"DATE:","…............................................"]

{"sheet":"ISUZU N SER","index":5,"n_rows":29,"n_cols":6,"rows_kept":29,"merged":[[3,0,3,5]]}
["Fill in the yellow fields only"]
["FORMAL QUOTE NO: FQ 45/2025",{"$nulls":3},"SUPPLIER \nNAME"]
[]
["SUPPLY AND DELIVERY OF MECHANICAL SPARE PARTS (ONCE-OFF) FOR KANNALAND MUNICIPALITY"]
[]
["ITEM NO.","DESCRIPTION","UNIT","QUANTITY","RATE","AMOUNT (EXCL. VAT)"]
[1,"AIR FILTER ADG 859","EACH",1,0,{"$f":"D7*E7","v":0}]
[2,"OIL FILTER Z 310","EACH",1,0,{"$f":"D8*E8","v":0}]
[3,"DIESEL FILTER Z 439","EACH",1,0,0]
[4,"REAR LIGHTS LH + RH","EACH",2,0,0]
[6,"HEAD LIGHTS LH + RH","EACH",2,0,0]
[7,"FORNT AND REAR SHOCKS","EACH",4,0,0]
[8,"REAR LIGHTS LED","PER BOX",2,0,0]
[9,"WIPER BLADES LH+ RH","EACH",2,0,0]
[10,"FRONT AND REAR SHACLE PIN AND BUSHES","PER BOX",8,0,0]
[11,"RH+ LH STEERING END","PER BOX",2,0,0]
[null,"SUMMARY OF PRICING SCHEDULE"]
[]
[null,"SUB-TOTAL",{"$nulls":3},{"$f":"SUM(F7:F16)","v":{"v":0,"d":"R0.00"}}]
[]
[null,"15% VAT",{"$nulls":3},{"$f":"ROUND(F19*0.15,2)","v":{"v":0,"d":"R0.00"}}]
[]
[null,"TENDER SUM CARRIED FORWARD TO FORM OF OFFER",{"$nulls":3},{"$f":"ROUND(SUM(F19:F21),2)","v":{"v":0,"d":"R0.00"}}]
[]
[]
[]
[null,"SIGNATURE OF SUPPLIER:","….............................................."]
[]
[null,"DATE:","…............................................"]

{"sheet":"HINO SUPER F 2009","index":6,"n_rows":34,"n_cols":6,"rows_kept":34,"merged":[[3,0,3,5]]}
["Fill in the yellow fields only"]
["FORMAL QUOTE NO: FQ 45/2025",{"$nulls":3},"SUPPLIER \nNAME"]
[]
["SUPPLY AND DELIVERY OF MECHANICAL SPARE PARTS (ONCE-OFF) FOR KANNALAND MUNICIPALITY"]
[]
["ITEM NO.","DESCRIPTION","UNIT","QUANTITY","RATE","AMOUNT (EXCL. VAT)"]
[1,"AIR FILTER ADG 1380 R","EACH",2,0,{"$f":"D7*E7","v":0}]
[2,"AIR FILTER ADG 1381 R","EACH",2,0,{"$f":"D8*E8","v":0}]
[3,"OIL FILTER Z 543","EACH",2,0,0]
[4,"DIESEL FILTER Z 285","EACH",2,0,0]
[6,"DIESEL FILTER Z 367","EACH",2,0,0]
[7,"HEAD LIGHTS LH+ RH","EACH",2,0,0]
[8,"INDICATOR LIGHTS LH+RH","PER BOX",2,0,0]
[9,"NUMBER PLATE LIGHTS","EACH",2,0,0]
[10,"FRONT AND REAR SHOCKS","PER BOX",8,0,0]
[11,"REAR LIGHTS SET LED","PER BOX",4,0,0]
[12,"REAR BRAKE SHOES","EACH",2,0,0]
[13,"FRONT BRAKE SHOES","EACH",2,0,0]
[14,"CLUTCH KIT","EACH",2,0,0]
[15,"GEAR CABLES LEFT & RIGHT","EACH",4,0,0]
[16,"GEAR LEVER","EACH",1,0,0]
[null,"SUMMARY OF PRICING SCHEDULE"]
[]
[null,"SUB-TOTAL",{"$nulls":3},{"$f":"SUM(F7:F21)","v":{"v":0,"d":"R0.00"}}]
[]
[null,"15% VAT",{"$nulls":3},{"$f":"ROUND(F24*0.15,2)","v":{"v":0,"d":"R0.00"}}]
[]
[null,"TENDER SUM CARRIED FORWARD TO FORM OF OFFER",{"$nulls":3},{"$f":"ROUND(SUM(F24:F26),2)","v":{"v":0,"d":"R0.00"}}]
[]
[]
[]
[null,"SIGNATURE OF SUPPLIER:","….............................................."]
[]
[null,"DATE:","…............................................"]

{"sheet":"ISUZU FSR700 1999","index":7,"n_rows":26,"n_cols":6,"rows_kept":26,"merged":[[3,0,3,5]]}
["Fill in the yellow fields only"]
["FORMAL QUOTE NO: FQ 45/2025",{"$nulls":3},"SUPPLIER \nNAME"]
[]
["SUPPLY AND DELIVERY OF MECHANICAL SPARE PARTS (ONCE-OFF) FOR KANNALAND MUNICIPALITY"]
[]
["ITEM NO.","DESCRIPTION","UNIT","QUANTITY","RATE","AMOUNT (EXCL. VAT)"]
[1,"AIR FILTER ADG 721","EACH",1,0,{"$f":"D7*E7","v":0}]
[2,"AIR FILTER ADG 722","EACH",1,0,{"$f":"D8*E8","v":0}]
[3,"OIL FILTER Z 309","EACH",1,0,0]
[4,"DIESEL FILTER Z 131","EACH",1,0,0]
[6,"FRONT AND REAR SHOCKS","EACH",4,0,0]
[7,"WIPER BLADES SET LH + RH","EACH",2,0,0]
[8,"RH+LH STEERING END","PER BOX",2,0,0]
[null,"SUMMARY OF PRICING SCHEDULE"]
[]
[null,"SUB-TOTAL",{"$nulls":3},{"$f":"SUM(F7:F13)","v":{"v":0,"d":"R0.00"}}]
[]
[null,"15% VAT",{"$nulls":3},{"$f":"ROUND(F16*0.15,2)","v":{"v":0,"d":"R0.00"}}]
[]
[null,"TENDER SUM CARRIED FORWARD TO FORM OF OFFER",{"$nulls":3},{"$f":"ROUND(SUM(F16:F18),2)","v":{"v":0,"d":"R0.00"}}]
[]
[]
[]
[null,"SIGNATURE OF SUPPLIER:","….............................................."]
[]
[null,"DATE:","…............................................"]

{"sheet":"ISUZU FSR700","index":8,"n_rows":26,"n_cols":6,"rows_kept":26,"merged":[[3,0,3,5]]}
["Fill in the yellow fields only"]
["FORMAL QUOTE NO: FQ 45/2025",{"$nulls":3},"SUPPLIER \nNAME"]
[]
["SUPPLY AND DELIVERY OF MECHANICAL SPARE PARTS (ONCE-OFF) FOR KANNALAND MUNICIPALITY"]
[]
["ITEM NO.","DESCRIPTION","UNIT","QUANTITY","RATE","AMOUNT (EXCL. VAT)"]
[1,"AIR FILTER ADG 721","EACH",1,0,{"$f":"D7*E7","v":0}]
[2,"AIR FILTER ADG 722","EACH",1,0,{"$f":"D8*E8","v":0}]
[3,"OIL FILTER Z 309","EACH",1,0,0]
[4,"DIESEL FILTER Z 131","EACH",1,0,0]
[6,"FRONT AND REAR SHOCKS","EACH",4,0,0]
[7,"WIPER BLADES SET LH + RH","EACH",2,0,0]
[8,"RH+LH STEERING END","PER BOX",2,0,0]
[null,"SUMMARY OF PRICING SCHEDULE"]
[]
[null,"SUB-TOTAL",{"$nulls":3},{"$f":"SUM(F7:F13)","v":{"v":0,"d":"R0.00"}}]
[]
[null,"15% VAT",{"$nulls":3},{"$f":"ROUND(F16*0.15,2)","v":{"v":0,"d":"R0.00"}}]
[]
[null,"TENDER SUM CARRIED FORWARD TO FORM OF OFFER",{"$nulls":3},{"$f":"ROUND(SUM(F16:F18),2)","v":{"v":0,"d":"R0.00"}}]
[]
[]
[]
[null,"SIGNATURE OF SUPPLIER:","….............................................."]
[]
[null,"DATE:","…............................................"]

{"sheet":"TRUCK ISUZU FVZ SEWERAGE TRUCK ","index":9,"n_rows":27,"n_cols":6,"rows_kept":27,"merged":[[3,0,3,5]]}
["Fill in the yellow fields only"]
["FORMAL QUOTE NO: FQ 45/2025",{"$nulls":3},"SUPPLIER \nNAME"]
[]
["SUPPLY AND DELIVERY OF MECHANICAL SPARE PARTS (ONCE-OFF) FOR KANNALAND MUNICIPALITY"]
[]
["ITEM NO.","DESCRIPTION","UNIT","QUANTITY","RATE","AMOUNT (EXCL. VAT)"]
[1,"AIR FILTER ADG 619","EACH",1,0,{"$f":"D7*E7","v":0}]
[2,"AIR FILTER ADG 620","EACH",1,0,{"$f":"D8*E8","v":0}]
[3,"OIL FILTER G997","EACH",1,0,0]
[4,"DIESEL FILTER G 543F","EACH",1,0,0]
[5,"FRONT AND REAR SHOCKS","EACH",1,0,0]
[6,"WIPER BLADES SET LH+RH","EACH",4,0,0]
[7,"BRAKE SHOES FRONT+REAR","EACH",1,0,0]
[8,"SEVRON BOARD","EACH",6,0,0]
[null,"SUMMARY OF PRICING SCHEDULE"]
[]
[null,"SUB-TOTAL",{"$nulls":3},{"$f":"SUM(F7:F14)","v":{"v":0,"d":"R0.00"}}]
[]
[null,"15% VAT",{"$nulls":3},{"$f":"ROUND(F17*0.15,2)","v":{"v":0,"d":"R0.00"}}]
[]
[null,"TENDER SUM CARRIED FORWARD TO FORM OF OFFER",{"$nulls":3},{"$f":"ROUND(SUM(F17:F19),2)","v":{"v":0,"d":"R0.00"}}]
[]
[]
[]
[null,"SIGNATURE OF SUPPLIER:","….............................................."]
[]
[null,"DATE:","…............................................"]

{"sheet":"NISSAN FIRE TRUCK 1998","index":10,"n_rows":27,"n_cols":6,"rows_kept":27,"merged":[[3,0,3,5]]}
["Fill in the yellow fields only"]
["FORMAL QUOTE NO: FQ 45/2025",{"$nulls":3},"SUPPLIER \nNAME"]
[]
["SUPPLY AND DELIVERY OF MECHANICAL SPARE PARTS (ONCE-OFF) FOR KANNALAND MUNICIPALITY"]
[]
["ITEM NO.","DESCRIPTION","UNIT","QUANTITY","RATE","AMOUNT (EXCL. VAT)"]
[1,"AIR FILTER ADG 619","EACH",1,0,{"$f":"D7*E7","v":0}]
[2,"AIR FILTER ADG 620","EACH",2,0,{"$f":"D8*E8","v":0}]
[3,"OIL FILTER G997","EACH",1,0,0]
[4,"DIESEL FILTER G 543F","EACH",2,0,0]
[5,"FRONT AND REAR SHOCKS","EACH",4,0,0]
[6,"WIPER BLADES SET LH+RH","EACH",2,0,0]
[7,"BRAKE SHOES FRONT+REAR","EACH",4,0,0]
[8,"SEVRON BOARD","EACH",1,0,0]
[null,"SUMMARY OF PRICING SCHEDULE"]
[]
[null,"SUB-TOTAL",{"$nulls":3},{"$f":"SUM(F7:F14)","v":{"v":0,"d":"R0.00"}}]
[]
[null,"15% VAT",{"$nulls":3},{"$f":"ROUND(F17*0.15,2)","v":{"v":0,"d":"R0.00"}}]
[]
[null,"TENDER SUM CARRIED FORWARD TO FORM OF OFFER",{"$nulls":3},{"$f":"ROUND(SUM(F17:F19),2)","v":{"v":0,"d":"R0.00"}}]
[]
[]
[]
[null,"SIGNATURE OF SUPPLIER:","….............................................."]
[]
[null,"DATE:","…............................................"]